[Event "CCC-IM 2022"]
[Site "Ballerup"]
[Date "2022.05.26"]
[Round "3.1"]
[White "Nielsen, Thomas Bach"]
[Black "Seegert, Kristian"]
[Result "1/2-1/2"]
[ECO "A57"]
[WhiteElo "2189"]
[BlackElo "2209"]
[Annotator "TA"]
[PlyCount "61"]
[EventDate "2022.05.25"]
[EventType "tourn"]
[EventCountry "DEN"]
[SourceTitle "playchess.com"]
[Source "ChessBase"]
[SourceQuality "1"]
[TimeControl "5400+30"]

{[%evp 24,61,26,0,20,10,10,14,10,12,17,16,12,10,16,0,0,0,0,0,21,9,16,7,7,7,7,-34,-38,-29,-8,-8,0,-10,-7,-8,-4,-32,-15,-16]} 1. d4 {[%emt 0:00:02]} Nf6 {[%emt 0:00:26]} 2. c4 {[%emt 0:00:07]} c5 {[%emt 0:00:10]} 3. d5 {[%emt 0:00:14]} b5 {[%emt 0:00:10]} 4. cxb5 {[%emt 0:00:41]} a6 {[%emt 0:00:13]} 5. b6 {[%emt 0:00:23]} e6 {[%emt 0:07:51]} 6. Nc3 {[%emt 0:07:53]} Nxd5 {[%emt 0:00:23]} 7. Nxd5 {[%emt 0:00:22]} exd5 {[%emt 0:00:05]} 8. Qxd5 {[%emt 0:00:16]} Nc6 {[%emt 0:00:08]} 9. e4 {[%emt 0:04:19]} Be7 {[%emt 0:00:07]} 10. Bc4 {[%emt 0:00:43]} O-O {[%emt 0:00:06]} 11. Nf3 {[%emt 0:00:05]} Rb8 {[%emt 0:15:00]} 12. O-O {[%emt 0:08:02]} Rxb6 {[%emt 0:00:29]} 13. b3 {[%emt 0:09:38]} d6 {[%emt 0:00:31] A57: Benko/Volga Gambit.} 14. Bb2 {[%emt 0:00:25]} Be6 {[%emt 0:01:46]} 15. Qd3 {[%emt 0:00:56]} Bxc4 {[%emt 0:13:07]} 16. Qxc4 {[%emt 0:00:06]} Bf6 {[%emt 0:00:20]} 17. Bxf6 {[%emt 0:01:29]} Qxf6 {[%emt 0:00:10]} 18. Rad1 {[%emt 0:00:49]} Re8 {[%emt 0:01:15] [#]} 19. Rd2 $146 {[%emt 0:02:56]} ({Predecessor:} 19. Rd3 Ne5 20. Qa4 Qe7 21. Rd5 Nd7 22. Nd2 Nf6 23. Rd3 Qb7 24. f3 d5 25. exd5 Rb4 26. Qc6 Rd8 27. Qxb7 Rxb7 28. d6 {1-0 (28) Miton,K (2623)-Licznerski,L (2265) Trzcianka 2012}) 19... h6 {[%emt 0:05:14]} 20. Rfd1 {[%emt 0:01:22]} Re6 {[%emt 0:00:50]} 21. h3 {[%emt 0:05:02]} Qf4 {[%emt 0:02:47]} 22. Re2 {[%emt 0:06:53]} Rb4 {[%emt 0:22:17]} 23. Qxa6 {[%emt 0:01:25]} Rbxe4 {[%emt 0:02:20]} 24. Rxe4 {[%emt 0:00:28]} Qxe4 {[%emt 0:00:06]} 25. Qd3 {[%emt 0:01:51]} (25. Qc8+ {seems wilder.} Kh7 26. Qc7 Rg6 27. Rxd6 Qxf3 28. Rxg6 Qd1+ 29. Kh2) 25... Qxd3 {[%emt 0:04:23]} 26. Rxd3 $15 {[%emt 0:00:04] KRN-KRN} Nb4 {[%emt 0:02:37]} 27. Rd2 {[%emt 0:00:12]} Kf8 {[%emt 0:00:11]} 28. Kf1 {[%emt 0:01:45]} Ke7 {[%emt 0:03:19]} 29. a3 {[%emt 0:02:42]} Nc6 {[%emt 0:00:30]} 30. Re2 {[%emt 0:00:12]} d5 {[%emt 0:01:04]} 31. Ke1 {[%emt 0:02:05] Weighted Error Value: White=0.10 (very precise) /Black=0.06 (flawless)} 1/2-1/2

[Event "CCC-IM 2022"]
[Site "Ballerup"]
[Date "2022.05.26"]
[Round "3.2"]
[White "Jacobsen, Mikkel Manosri"]
[Black "Rostgaard, Tobias Valentin"]
[Result "1-0"]
[ECO "D00"]
[WhiteElo "2251"]
[BlackElo "2339"]
[Annotator "TA"]
[PlyCount "99"]
[EventDate "2022.05.25"]
[EventType "tourn"]
[EventCountry "DEN"]
[SourceTitle "playchess.com"]
[Source "ChessBase"]
[SourceQuality "1"]
[TimeControl "5400+30"]

{[%evp 9,99,0,0,0,-1,-9,7,-3,0,-27,0,-12,-16,-8,8,-30,-28,-25,0,0,17,-7,7,0,12,14,25,0,9,16,54,12,29,33,79,53,39,22,130,147,137,154,146,144,147,107,117,116,123,116,118,112,259,250,266,198,204,198,453,453,453,453,612,600,640,646,634,593,538,509,884,843,1326,1304,1214,1215,1151,1136,4483,3075,29979,29980,29979,29980,29975,5238,29969,29972,29987,29988,29988,29989]} 1. d4 {[%emt 0:00:03]} d5 {[%emt 0:00:32]} 2. Bf4 {[%emt 0:00:38]} Nf6 {[%emt 0:00:55]} 3. e3 {[%emt 0:00:06]} e6 {[%emt 0:00:19]} 4. Nd2 {[%emt 0:00:19]} Bd6 {[%emt 0:00:17]} 5. Bg3 {[%emt 0:00:18]} b6 {[%emt 0:00:30]} 6. Ngf3 {[%emt 0:01:18] D00: 1 d4 d5: Unusual lines.} Bb7 {[%emt 0:00:23]} 7. a4 {[%emt 0:00:15] [#]} a6 $146 {[%emt 0:01:02]} ({Predecessor:} 7... a5 8. Bb5+ c6 9. Bd3 Bxg3 10. hxg3 Nbd7 11. Ne5 Nxe5 12. dxe5 Nd7 13. Qg4 g6 {½-½ (37) Graf,F (2478)-Votava,J (2524) Austria 2016}) 8. Be2 {[%emt 0:01:35] The position is equal.} O-O {[%emt 0:01:57]} 9. O-O {[%emt 0:02:15]} c5 {[%emt 0:03:51]} 10. c3 {[%emt 0:08:09]} Nc6 {[%emt 0:02:58][%cal Bb8c6,Bc6e7,Be7f5][%mdl 32]} 11. Ne5 {[%emt 0:01:27]} Ne7 {[%emt 0:03:11]} 12. f4 {[%emt 0:06:57]} Nf5 {[%emt 0:00:23]} 13. Bf2 {[%emt 0:00:05]} Be7 {[%emt 0:00:14]} 14. a5 {[%emt 0:00:21]} cxd4 {[%emt 0:02:53]} 15. exd4 {[%emt 0:00:04]} bxa5 {[%emt 0:01:17]} 16. Nb3 {[%emt 0:04:48]} Ne4 {[%emt 0:15:49][%cal Oa5a4]} 17. Nxa5 {[%emt 0:04:48]} Qc7 {[%emt 0:00:31]} 18. Qa4 {[%emt 0:04:03]} Bc8 {[%emt 0:05:23] Prevents Qd7.} 19. Bd3 {[%emt 0:07:30]} Rb8 {[%emt 0:06:35]} 20. Qc6 {[%emt 0:05:11]} Qa7 {[%emt 0:08:48]} 21. Bxe4 {[%emt 0:07:52]} dxe4 {[%emt 0:00:09]} 22. Qxe4 {[%emt 0:00:18] Strongly threatening Nec6.} (22. g4 $5 {[%cal Rg4f5]} Nh6 23. Nac4 $16 (23. Qxe4 Rxb2 24. Nac4 Rb3 $11)) 22... Rxb2 {[%emt 0:00:42]} 23. Nd3 {[%emt 0:08:11] Pair of Knights!} Rd2 {[%emt 0:03:58]} (23... Rc2 $11 {remains equal.}) 24. Rfb1 $1 $16 {[%emt 0:10:32][%cal Bf1b1,Bb1b2,Bb2c2,Bc2c7][%mdl 32]} Qc7 {[%emt 0:03:28]} 25. Be1 $1 {[%emt 0:02:44]} Qxc3 {[%emt 0:05:33]} 26. Bxd2 {[%emt 0:05:31]} Qxd2 {[%emt 0:00:12]} 27. Nc6 {[%emt 0:02:01]} Bd6 {[%emt 0:00:41]} 28. Rb2 {[%emt 0:00:05]} Qc3 {[%emt 0:01:55][%cal Oc8b7]} 29. Rc1 {[%emt 0:02:21]} Qa3 {[%emt 0:00:12] [#]} 30. Nce5 $1 $36 {[%emt 0:02:48][%mdl 2048] Prevents Bd7. White is in control. White is more active.} Qa5 {[%emt 0:10:06] [#] Loses the game.} (30... Bxe5 $16 {keeps fighting.} 31. dxe5 (31. fxe5 Bd7 $16) 31... Bd7) 31. Rbc2 $1 $18 {[%emt 0:04:01]} Bxe5 {[%emt 0:01:52]} 32. Qxe5 {[%emt 0:06:53]} ({Don't do} 32. dxe5 $6 Qb6+ 33. Nc5 Rd8 $16) ({Don't play} 32. fxe5 $6 Bd7 33. Nc5 Qd8 $16) 32... Qxe5 {[%emt 0:00:34]} 33. Nxe5 {[%emt 0:00:02]} ({Don't take} 33. dxe5 Bd7 34. Nc5 Bb5) 33... Bb7 {[%emt 0:00:57]} (33... Nxd4 {was worth a try.} 34. Rxc8 Ne2+ 35. Kf2 Nxc1 36. Rxc1 Ra8) 34. Rc7 {[%emt 0:00:02]} Bd5 {[%emt 0:11:44]} 35. Nd7 {[%emt 0:00:46] Threatens to win with Rc8.} g5 {[%emt 0:01:06]} 36. Nxf8 {[%emt 0:01:51]} Kxf8 {[%emt 0:00:07]} 37. fxg5 {[%emt 0:00:14]} Nxd4 {[%emt 0:00:13]} 38. Kf2 {[%emt 0:00:28] Against Ne2} Nb5 {[%emt 0:01:03]} 39. Rd7 {[%emt 0:01:24] Rc8+ is the strong threat.} Kg7 {[%emt 0:01:38]} (39... Ke8 $142 40. Rxd5 exd5) 40. Rc8 {[%emt 0:00:46]} Be4 {[%emt 0:01:01]} 41. g4 {[%emt 0:00:20]} h6 {[%emt 0:01:31]} 42. gxh6+ {[%emt 0:00:21]} Kxh6 {[%emt 0:00:08]} 43. Rxf7 {[%emt 0:01:33] Black must now prevent Rf6+.} Kg6 {[%emt 0:00:37] Against Rf6+} 44. Rcf8 {[%emt 0:00:26] Intending Rf6+ and mate.} Bd5 {[%emt 0:00:08]} 45. Rf6+ {[%emt 0:00:08]} Kg7 {[%emt 0:00:17]} 46. R8f7+ {[%emt 0:00:27]} Kg8 {[%emt 0:00:05]} 47. Ke3 {[%emt 0:00:35]} (47. Rd7 $142 Nc3 48. Ke3 Ne4 49. Rg6+ Kh8 50. h4 Nc5 51. Rdg7 Be4 52. Rg8+ Kh7 53. R6g7+ Kh6 54. g5+ Kh5 55. Kf4 e5+ 56. Kg3 Bf5 57. Rh8+ Bh7 58. Rhxh7#) 47... Nd6 {[%emt 0:00:22]} 48. Rd7 {[%emt 0:00:14] White mates.} Ne4 {[%emt 0:00:39]} 49. Rg6+ {[%emt 0:00:04]} Kf8 {[%emt 0:00:11]} 50. Kd4 {[%emt 0:00:22] Weighted Error Value: White=0.10 (very precise) /Black=0.57} 1-0

[Event "CCC-IM 2022"]
[Site "Ballerup"]
[Date "2022.05.26"]
[Round "3.3"]
[White "Kistrup, Nicolai"]
[Black "Ahlander, Bjorn"]
[Result "1/2-1/2"]
[ECO "E08"]
[WhiteElo "2306"]
[BlackElo "2375"]
[Annotator "TA"]
[PlyCount "78"]
[EventDate "2022.05.25"]
[EventType "tourn"]
[EventCountry "DEN"]
[SourceTitle "playchess.com"]
[Source "ChessBase"]
[SourceQuality "1"]
[TimeControl "5400+30"]

{[%evp 23,78,28,33,33,35,51,95,91,101,105,104,99,92,71,64,70,133,133,119,56,46,55,50,50,74,78,78,82,83,65,81,0,0,0,0,0,0,0,0,0,0,0,0,0,0,0,0,0,0,0,0,0,0,0,0,0,0]} 1. d4 {[%emt 0:00:23]} Nf6 {[%emt 0:00:02]} 2. c4 {[%emt 0:00:05]} e6 {[%emt 0:00:05]} 3. g3 {[%emt 0:00:07]} d5 {[%emt 0:00:10]} 4. Bg2 {[%emt 0:00:15]} Be7 {[%emt 0:00:15]} 5. Nf3 {[%emt 0:00:26]} O-O {[%emt 0:00:04]} 6. O-O {[%emt 0:01:28]} c6 {[%emt 0:00:03]} 7. Qc2 {[%emt 0:01:01]} Nbd7 {[%emt 0:00:11]} 8. b3 {[%emt 0:02:12]} b6 {[%emt 0:00:06]} 9. Rd1 {[%emt 0:01:08]} Ba6 {[%emt 0:00:42]} 10. Nbd2 {[%emt 0:02:50][%cal Bb1d2,Bd2f1,Bf1e3,Be3c4][%mdl 32]} Rc8 {[%emt 0:00:03]} 11. e4 {[%emt 0:00:20]} c5 {[%emt 0:00:58]} 12. exd5 {[%emt 0:02:51]} exd5 {[%emt 0:00:03]} 13. Nf1 {[%emt 0:01:46] E09: Closed Catalan: Main Line: 7 Qc2 c6 8 Nbd2.} dxc4 {[%emt 0:12:46] has lost popularity (13...cxd4).} 14. d5 $1 {[%emt 0:05:02] [#]} Ng4 $146 {[%emt 0:09:25]} ({Predecessor:} 14... cxb3 15. axb3 Bxf1 16. Bxf1 Qc7 17. Bb5 Ne8 18. Re1 Bf6 19. Ng5 Bxg5 20. Bxg5 Nd6 {½-½ (47) Khalifman,A (2651)-Mokshanov,A (2429) Tiumen 2012}) 15. bxc4 {[%emt 0:04:21] White is better.} Bf6 {[%emt 0:11:51]} 16. Rb1 {[%emt 0:02:29]} Nde5 {[%emt 0:01:21]} 17. Nxe5 {[%emt 0:07:37]} Nxe5 {[%emt 0:00:03]} 18. Ne3 {[%emt 0:01:05] And now Qa4 would win.} Qd7 {[%emt 0:00:25] Inhibits Qa4.} 19. Bb2 {[%emt 0:07:02] Strongly threatening f4.} Rfe8 {[%emt 0:05:15] [#]} (19... Rce8 $14) 20. Be4 $1 $16 {[%emt 0:31:29]} g6 {[%emt 0:00:49]} 21. f4 {[%emt 0:04:09]} (21. d6 $16) 21... Nxc4 $1 $14 {[%emt 0:28:09]} 22. Nxc4 {[%emt 0:03:04]} Bd4+ {[%emt 0:00:03]} 23. Bxd4 {[%emt 0:04:07]} cxd4 {[%emt 0:00:07]} 24. Rxd4 {[%emt 0:01:02] Black must now prevent a4.} b5 {[%emt 0:01:41] Against a4} 25. Ne5 {[%emt 0:07:34]} Rxe5 {[%emt 0:00:04] [#]} 26. Qd3 {[%emt 0:02:39]} ({Reject} 26. fxe5 Rxc2 27. Bxc2 Qc7 $15) 26... Ree8 {[%emt 0:03:37]} 27. Qa3 {[%emt 0:00:28] Inhibits Qd6.} ({White should play} 27. d6 $16) 27... Bb7 $11 {[%emt 0:01:11][%cal Oe8e4] The position is equal.} 28. Qxa7 {[%emt 0:02:05]} Rxe4 {[%emt 0:01:57][%mdl 64] Remove Defender} 29. Rxe4 {[%emt 0:00:11] Hoping for Rd1.} Qxd5 {[%emt 0:00:12]} 30. Rbe1 {[%emt 0:01:40]} f5 {[%emt 0:17:11]} 31. Re8+ {[%emt 0:00:05]} Rxe8 {[%emt 0:00:10]} 32. Rxe8+ {[%emt 0:00:04][%mdl 4096] Endgame KQR-KQB} Kf7 {[%emt 0:00:04][%csl Gb7][%cal Rd5g2]} 33. Re2 {[%emt 0:00:16] Inhibits Qg2+. Threatens to win with Kf2.} Qh1+ {[%emt 0:00:40]} 34. Kf2 {[%emt 0:00:04]} Qxh2+ {[%emt 0:00:24]} 35. Ke1 {[%emt 0:01:11]} Qxg3+ {[%emt 0:00:13]} 36. Kd1 {[%emt 0:02:10]} Qd3+ {[%emt 0:01:06]} 37. Ke1 {[%emt 0:01:31] Chess con chili.} Qg3+ {[%emt 0:02:46]} 38. Kd1 {[%emt 0:00:09]} Qd3+ {[%emt 0:02:32]} 39. Ke1 {[%emt 0:00:04]} Qg3+ {[%emt 0:00:31] Weighted Error Value: White=0.07 (flawless) /Black=0.04 (flawless)} 1/2-1/2

[Event "CCC-IM 2022"]
[Site "Ballerup"]
[Date "2022.05.26"]
[Round "3.4"]
[White "Sahl, Bjarke"]
[Black "Casper Yukun Liu"]
[Result "0-1"]
[ECO "A05"]
[WhiteElo "2312"]
[BlackElo "2218"]
[Annotator "TA"]
[PlyCount "103"]
[EventDate "2022.05.25"]
[EventType "tourn"]
[EventCountry "DEN"]
[SourceTitle "playchess.com"]
[Source "ChessBase"]
[SourceQuality "1"]
[TimeControl "5400+30"]

{[%evp 12,103,0,0,0,-12,4,-12,8,-67,-60,-65,-76,-76,-85,-89,-79,-75,-74,-81,-84,-83,-53,-133,-59,-61,-69,-112,14,-115,-113,-117,-111,-147,-154,-154,-144,-220,-136,-137,-139,-152,-121,-179,-136,-192,-191,-209,-164,-170,-97,-97,-97,-97,-97,-87,-29,-149,-76,-83,-68,-75,-29,-29,-27,-20,0,0,0,0,0,0,0,0,0,-5,-5,-12832,-12832,-12832,-5808,-27999,-27999,-27999,-27999,-27999,-27999,-27999,-27999,-27998,-27998,-27999,-27999,-27998]} 1. Nf3 {[%emt 0:00:10]} Nf6 {[%emt 0:01:21]} 2. b3 {[%emt 0:02:02]} d5 {[%emt 0:00:06]} 3. e3 {[%emt 0:00:52]} Bf5 {[%emt 0:00:01]} 4. Bb2 {[%emt 0:02:08]} e6 {[%emt 0:00:02]} 5. Be2 {[%emt 0:02:49]} h6 {[%emt 0:00:04]} 6. O-O {[%emt 0:04:01]} Nbd7 {[%emt 0:00:02]} 7. c4 {[%emt 0:00:57]} c6 {[%emt 0:00:01] A06: Réti Opening: 1 Nf3 d5.} 8. d3 {[%emt 0:01:19]} a5 {[%emt 0:04:30]} 9. a3 {[%emt 0:04:32] [#]} Nc5 $146 {[%emt 0:05:38] The position is equal.} ({Predecessor:} 9... Bd6 10. Qc1 O-O 11. Bc3 e5 12. Qb2 Re8 13. Nbd2 Qc7 14. b4 e4 15. dxe4 dxe4 {0-1 (24) Tsotsonava,E (1887)-Seifert,H (2159) Chess.com INT 2021}) 10. b4 {[%emt 0:11:58]} (10. Nd4 $11) 10... dxc4 $1 $15 {[%emt 0:02:13]} 11. bxc5 {[%emt 0:14:50] Strongly threatening d4.} cxd3 {[%emt 0:00:09]} 12. Bd4 {[%emt 0:00:09]} dxe2 {[%emt 0:00:09]} 13. Qxe2 {[%emt 0:00:03]} Nd7 {[%emt 0:05:42]} 14. Rc1 {[%emt 0:01:37]} Bg4 {[%emt 0:02:57]} 15. e4 {[%emt 0:04:52]} Bxf3 {[%emt 0:04:47]} 16. Qxf3 {[%emt 0:00:07]} Qg5 {[%emt 0:00:14][%csl LRc1,LRc5]} 17. Qe3 {[%emt 0:05:13]} (17. Qc3 $15) 17... Rd8 {[%emt 0:08:58]} (17... Qxe3 $17 18. Bxe3 O-O-O) 18. f4 $1 {[%emt 0:04:39]} Qh5 $40 {[%emt 0:00:21][%mdl 128] Black is up to no good.} 19. e5 {[%emt 0:01:39]} b6 {[%emt 0:26:51]} (19... g5 $1 $17 {[%cal Rg5f4]} 20. f5 Qg4 21. fxe6 fxe6) 20. Nd2 {[%emt 0:11:32]} (20. cxb6 $11 {was the only way to keep the balance.} c5 21. Bc3 Nxb6 22. Nd2) 20... Bxc5 $1 $17 {[%emt 0:06:56]} ({Much worse is} 20... bxc5 $6 21. Bc3 $11) (20... Nxc5 $6 21. Ne4 $11) 21. Ne4 {[%emt 0:00:24][%cal Re4c5]} O-O $1 {[%emt 0:03:21] White must now prevent ...Bxd4.} 22. Bxc5 {[%emt 0:03:00]} Nxc5 {[%emt 0:00:03]} ({Weaker is} 22... bxc5 23. g3 $15) 23. Nxc5 {[%emt 0:00:33]} bxc5 {[%emt 0:00:01]} 24. h3 {[%emt 0:00:27]} (24. Qxc5 $17 {keeps fighting.} Rd2 25. Qxc6) 24... Rd4 {[%emt 0:03:32]} 25. Rxc5 {[%emt 0:00:46]} Rfd8 {[%emt 0:00:05]} 26. Rxc6 {[%emt 0:03:28]} Qg6 {[%emt 0:02:35] ...Rd2 is the strong threat.} 27. Kh2 {[%emt 0:08:06]} (27. Rc3 $17 {was worth a try.}) 27... Rd2 {[%emt 0:00:02][%csl Gd2][%cal Rg6g2]} 28. Qg3 {[%emt 0:01:12] [#]} (28. Qf3 $17) 28... Qe4 $1 $19 {[%emt 0:00:01]} 29. Rc3 {[%emt 0:01:36]} Rb2 {[%emt 0:05:06]} 30. Qf3 {[%emt 0:03:52]} Qf5 {[%emt 0:00:01]} ({Black should try} 30... Qxf3 $19 31. Rxf3 Rdd2) 31. Qg4 $17 {[%emt 0:01:19]} Qxg4 {[%emt 0:06:13] Black is more active.} 32. hxg4 {[%emt 0:00:26][%mdl 4096] Endgame KRR-KRR} Rdd2 {[%emt 0:00:02]} 33. Rg1 {[%emt 0:00:18]} Ra2 {[%emt 0:00:07]} ({Better is} 33... Rf2 $17 34. Kg3 g5 35. fxg5 hxg5) 34. f5 {[%emt 0:05:42] [#]} (34. Rc8+ $1 $11 Kh7 35. Rc7) 34... Re2 {[%emt 0:00:42]} ({Black should play} 34... Rd4 $1 35. Kh3 Re2 36. fxe6 fxe6) 35. Rc8+ {[%emt 0:00:37]} Kh7 {[%emt 0:00:01] Threatens to win with ...exf5.} 36. Rc7 $1 {[%emt 0:00:30]} exf5 {[%emt 0:01:40]} (36... Rxe5 $17 37. Rxf7 exf5 38. Rxf5 Rxf5 39. gxf5 Rxa3) 37. gxf5 $11 {[%emt 0:00:19]} Rxe5 {[%emt 0:00:05]} 38. Rf1 {[%emt 0:00:14]} Ree2 {[%emt 0:00:26]} 39. Rxf7 {[%emt 0:00:40]} Rxg2+ {[%emt 0:00:02]} ({Don't take} 39... Rxa3 40. f6 Re8 41. Rxg7+ Kh8 42. Rg6 $11) 40. Kh3 {[%emt 0:00:11]} Rgf2 {[%emt 0:04:19]} 41. Rxf2 {[%emt 0:01:14]} Rxf2 {[%emt 0:00:02] KR-KR} 42. Kg4 $1 {[%emt 0:00:04]} Rg2+ {[%emt 0:00:55]} 43. Kf3 {[%emt 0:00:34]} Ra2 {[%emt 0:00:52]} 44. f6 $2 {[%emt 0:00:22][%mdl 8192] This move loses the game for White.} (44. Ra7 $11) 44... Rxa3+ {[%emt 0:00:09]} 45. Kg4 {[%emt 0:00:10]} Kg6 $1 {[%emt 0:00:18][%csl LRf6,LRf7]} 46. Rxg7+ {[%emt 0:00:12]} Kxf6 {[%emt 0:00:02] Black mates.} 47. Ra7 {[%emt 0:01:15]} Ra4+ {[%emt 0:02:32]} 48. Kh5 {[%emt 0:00:09]} Ra1 {[%emt 0:00:06]} 49. Ra6+ {[%emt 0:00:08]} Kf5 {[%emt 0:00:13]} 50. Kxh6 {[%emt 0:00:06]} a4 {[%emt 0:00:15]} 51. Ra5+ {[%emt 0:01:36]} Ke4 {[%emt 0:02:01]} 52. Kg7 {Weighted Error Value: White=0.55/Black=0.17 (very precise)} 0-1

[Event "CCC-IM 2022"]
[Site "Ballerup"]
[Date "2022.05.26"]
[Round "3.5"]
[White "Kenneskog, Theodor"]
[Black "Brynell, Stellan"]
[Result "0-1"]
[ECO "C11"]
[WhiteElo "2296"]
[BlackElo "2401"]
[Annotator "TA"]
[PlyCount "114"]
[EventDate "2022.05.25"]
[EventType "tourn"]
[EventCountry "DEN"]
[SourceTitle "playchess.com"]
[Source "ChessBase"]
[SourceQuality "1"]
[TimeControl "5400+30"]

{[%evp 20,114,10,24,22,23,46,20,64,62,47,-15,-24,-13,-6,-5,-10,-15,-11,-10,0,0,0,-116,0,-3,-9,-9,-6,-2,0,0,0,-7,-7,-8,0,0,0,0,73,20,64,70,63,67,72,67,67,65,66,66,65,65,69,65,66,64,64,76,86,94,90,51,51,66,144,120,154,163,160,161,166,154,139,0,0,0,0,0,0,0,0,0,0,0,0,-29987,-29988,-29988,-29989,-29989,-29990,-29990,-29991,-29991,-29992]} 1. e4 {[%emt 0:00:05]} e6 {[%emt 0:00:08]} 2. d4 {[%emt 0:00:05]} d5 {[%emt 0:00:03]} 3. Nc3 {[%emt 0:00:04]} Nf6 {[%emt 0:00:12]} 4. e5 {[%emt 0:00:14]} Nfd7 {[%emt 0:00:05]} 5. f4 {[%emt 0:00:04]} c5 {[%emt 0:00:15]} 6. Nf3 {[%emt 0:00:05]} Nc6 {[%emt 0:00:04]} 7. Be3 {[%emt 0:00:05]} cxd4 {[%emt 0:00:26]} 8. Nxd4 {[%emt 0:00:05]} Bc5 {[%emt 0:00:05]} 9. Qd2 {[%emt 0:00:16]} O-O {[%emt 0:00:10]} 10. O-O-O {[%emt 0:00:20]} a6 {[%emt 0:00:12]} 11. Nb3 {[%emt 0:01:15]} b6 {[%emt 0:02:10] C11: French: Classical System: 4 e5 and 4 Bg5 dxe4.} 12. h4 {[%emt 0:00:19][%cal Bh2h4,Bh4h5][%mdl 32]} Bb7 {[%emt 0:02:21]} 13. h5 {[%emt 0:00:13]} Qe7 {[%emt 0:11:54] The position is equal.} 14. Kb1 {[%emt 0:08:44] [#]} Rac8 $146 {[%emt 0:05:46]} ({Predecessor:} 14... h6 15. Rg1 Rfd8 16. Ne2 a5 17. g4 f6 18. g5 hxg5 19. Ned4 gxf4 20. Bxf4 Ncxe5 21. Bh3 Kh8 22. Rg6 Bb4 23. Qh2 Nf8 24. Bxe5 fxe5 25. Nxe6 {1-0 (25) Sferle,M (2509)-Castro Salguero,R (2411) ICCF email 2015}) 15. Ne2 {[%emt 0:03:29]} (15. h6 $14 Bxe3 16. Qxe3) 15... f6 $11 {[%emt 0:11:46]} 16. exf6 {[%emt 0:04:24]} Nxf6 {[%emt 0:00:50]} 17. Ned4 {[%emt 0:00:42]} Ne4 {[%emt 0:04:57]} 18. Qe1 {[%emt 0:00:38]} Nxd4 {[%emt 0:10:05]} 19. Nxd4 {[%emt 0:02:17]} e5 {[%emt 0:05:45]} 20. fxe5 {[%emt 0:05:38]} Qxe5 {[%emt 0:00:09]} 21. Rh3 {[%emt 0:17:23] Prevents Ng3.} (21. Bd3 $11) 21... Nf2 {[%emt 0:13:59] Black is more active.} 22. Bxf2 {[%emt 0:11:28]} Qxe1 {[%emt 0:00:50][%mdl 64] Remove Defender} 23. Rxe1 {[%emt 0:00:45]} Rxf2 {[%emt 0:00:06]} 24. c3 {[%emt 0:01:59]} Rcf8 {[%emt 0:03:44]} 25. Rf3 $1 {[%emt 0:01:12]} Bc8 {[%emt 0:05:41]} 26. Rxf2 {[%emt 0:05:10]} Rxf2 {[%emt 0:00:07]} 27. Bd3 {[%emt 0:00:53]} Bd7 {[%emt 0:06:18] Inhibits Re8+.} 28. Re5 {[%emt 0:03:30]} Rxg2 {[%emt 0:04:00]} 29. Rxd5 {[%emt 0:00:48]} Ba4 {[%emt 0:03:13] [#]} (29... Bg4 $11 {remains equal.}) 30. b3 {[%emt 0:00:56]} (30. b4 $1 $16 {[%cal Rb4c5]} Be7 31. Bc4 (31. Bxa6 Bg5 $14)) 30... Be8 {[%emt 0:01:12]} 31. Bc4 $1 {[%emt 0:06:55]} Rg1+ {[%emt 0:01:24]} 32. Kc2 {[%emt 0:00:21]} Rg2+ {[%emt 0:00:05]} 33. Kd1 {[%emt 0:03:36]} Kf8 {[%emt 0:00:57]} 34. Ne6+ {[%emt 0:04:25]} Ke7 {[%emt 0:00:12]} 35. Nxc5 {[%emt 0:00:07]} bxc5 $14 {[%emt 0:00:18][%mdl 4096] Endgame KRB-KRB} 36. Re5+ {[%emt 0:00:36]} Kd8 {[%emt 0:01:06]} 37. a4 {[%emt 0:00:19]} Rh2 {[%emt 0:01:43]} 38. Rd5+ {[%emt 0:05:01]} Ke7 {[%emt 0:00:53]} 39. Rxc5 {[%emt 0:00:47]} Bxh5+ {[%emt 0:03:43]} 40. Ke1 {[%emt 0:00:50]} Bf3 {[%emt 0:01:18]} 41. Rc7+ {[%emt 0:00:52]} Kd6 {[%emt 0:00:09]} 42. Rxg7 {[%emt 0:00:39]} a5 {[%emt 0:00:38]} (42... Bd5 $14) 43. Rg3 $16 {[%emt 0:08:39]} Be4 {[%emt 0:00:34]} 44. Rg5 {[%emt 0:00:36]} h5 {[%emt 0:00:35]} 45. Rxa5 {[%emt 0:00:18]} h4 {[%emt 0:00:09]} 46. Rh5 {[%emt 0:01:08] Hoping for a5.} Bf3 {[%emt 0:00:16] [#]} 47. Rh6+ {[%emt 0:00:17]} (47. Rf5 $1 $16 {[%cal Rf5f3]} Bg4 48. Rd5+ Kc7 49. Rc5+ Kd6 50. Rd5+ Kc7 51. Rg5) 47... Ke5 $11 {[%emt 0:00:05]} 48. a5 {[%emt 0:01:22] And now a6 would win.} Kf4 {[%emt 0:01:13]} 49. a6 {[%emt 0:01:40]} Ke3 {[%emt 0:00:56] Threatens to win with ...Ra2.} 50. Re6+ {[%emt 0:03:12]} Be4 $1 {[%emt 0:00:23] aiming for ...Ra2.} 51. b4 {[%emt 0:00:40]} Rb2 {[%emt 0:01:51][%cal Rb2b1]} 52. Rxe4+ $1 {[%emt 0:00:30]} Kxe4 {[%emt 0:00:01] KR-KB} 53. Bf1 $2 {[%emt 0:00:33][%mdl 8192]} (53. a7 Rb1+ 54. Kf2 Ra1 $17) (53. Kd1 $11 Rg2 54. b5 (54. a7 $2 Rg1+ 55. Ke2 Ra1 $19)) 53... Ke3 {[%emt 0:00:34][%cal Rb2b1] Black mates.} 54. Kd1 {[%emt 0:00:18]} Rb1+ {[%emt 0:00:22][%mdl 64] Skewer} 55. Kc2 {[%emt 0:00:02]} Rxf1 {[%emt 0:00:06]} 56. b5 {[%emt 0:00:24]} h3 {[%emt 0:00:46]} 57. a7 {[%emt 0:00:31]} Ra1 {[%emt 0:00:23] Black used his chance.  Weighted Error Value: White=0.29 (precise) /Black=0.14 (very precise)} 0-1